Workbook

Sheet 使い方
B1: これであなたもひとり立ち
L55: ©金融広報中央委員会2023
L56: 授業での使用を除き、無断転載を禁じます。

Sheet ｼﾐｭﾚｰｼｮﾝ
A2: ワーク５ | D2: Let's try 収支の合った楽しい生活
B6: 項目 | E6: 内訳 | G6: 学生 | H6: 社会人
K7: 学生
E8: 預金引き出し等
K9: 収入合計Ａ | L9: =$G$16 -> 0
E10: ボーナス等 | K10: 可処分所得（Ａ－Ｃ） | L10: =G16-G34 -> 0
K11: 消費支出限度額（A-C-D) | L11: =G16-G34-G40 -> 0
E12: ①給料 | K12: 消費支出合計 | L12: =G27 -> 0
B13: 実収入 | E13: ②仕送り | K13: 支出合計（Ｂ＋Ｃ＋Ｄ） | L13: =G27+G34+G40 -> 0
E14: ③アルバイト | K14: 収支 | L14: =L9-L13 -> 0
E15: ④奨学金
E16: 合計Ａ | G16: =G13+G14+G15 -> 0 | H16: =H12 -> 0
K17: 社会人
E18: ⑤食費
E19: ⑥住居費 | K19: 収入合計Ａ | L19: =$H$16 -> 0
E20: ⑦光熱水道費 | K20: 可処分所得（Ａ－Ｃ） | L20: =H16-H34 -> 0
E21: ⑧家具家事用品費 | K21: 消費支出限度額（A-C-D) | L21: =H16-H34-H40 -> 0
E22: ⑨被服履物費 | K22: 消費支出合計 | L22: =H27 -> 0
E23: ⑩保健医療費 | K23: 支出合計(Ｂ＋Ｃ＋Ｄ) | L23: =H27+H34+H40 -> 0
E24: ⑪交通通信費 | K24: 収支 | L24: =L19-L23 -> 0
C25: 学生 | E25: ⑫教養娯楽費 | J25: 社会人
C26: 消費支出限度額は | E26: ⑬その他 | J26: 消費支出限度額は
C27: =L11 -> 0 | E27: 合計Ｂ | G27: =G18+G19+G20+G21+G22+G23+G24+G25+G26 -> 0 | H27: =H18+H19+H20+H21+H22+H23+H24+H25+H26 -> 0 | J27: =L21 -> 0
E29: ⑭所得税
E30: 社会保険 | F30: ⑮国民年金
F31: ⑯厚生年金
F32: ⑰健康保険
F33: ⑱雇用保険
E34: 合計Ｃ | G34: =G30 -> 0 | H34: =H29+H31+H32+H33 -> 0
E36: ⑲預貯金
E37: ⑳任意保険料
E38: ㉑クレジット
E39: ㉒奨学金返済
E40: 合計Ｄ | G40: =G36+G37+G38 -> 0 | H40: =H36+H37+H38+H39 -> 0

Sheet Sheet1 (hidden)

Sheet 資料
C1: ひとり暮らしの生活費（１カ月平均、自宅外生＜寮生除く＞） | O1: 単位（円） | R1: 自宅生の１カ月の生活費 | U1: 単位（円） | X1: 奨学金 | Y1: 日本学生支援機構
D2: 全国 | E2: 北海道 | F2: 東北 | G2: 1都3県 | H2: 北甲 | I2: 東海 | J2: 北陸 | K2: 京都 | L2: 阪神 | M2: 京阪神 | N2: 中国四国 | O2: 九州 | R2: 収 入 | T2: 支 出 | X2: （１）奨学金の種類と貸与月額 | AC2: （２）奨学金の返還
R3: 合計 | S3: =SUM(S4:S7) -> 63630 | T3: 合計 | U3: =SUM(U4:U13) -> 62970 | X3: 貸与月額 | AC3: ＜返還例＞ | AD3: 第一種奨学金（無利息）－大学学部で貸与（48か月）を受けた場合
C4: 仕送り | D4: 71880 | E4: 61930 | F4: 58590 | G4: 85630 | H4: 63810 | I4: 63790 | J4: 62710 | K4: 71720 | L4: 65970 | M4: 70330 | N4: 60120 | O4: 58770 | R4: 小遣い | S4: 10370 | T4: 食費 | U4: 10540 | X4: 第一種奨学金 ＜最高月額＞ （無利息） | Y4: 区分 | Z4: 自宅通学生 | AA4: 自宅外通学生 | AC4: 区分 | AE4: 貸与月額 | AF4: 貸与総額 | AG4: 返還月額 | AH4: 返還回数（年数）
C5: 奨学金 | D5: 20380 | E5: 24760 | F5: 29040 | G5: 20980 | H5: 26580 | I5: 17110 | J5: 21010 | K5: 17540 | L5: 23030 | M5: 18870 | N5: 21700 | O5: 24500 | R5: 奨学金 | S5: 10240 | T5: 住居費 | U5: 590 | Y5: 国公立の大学・短大・専門学校 | Z5: 45,000円 | AA5: 51,000円 | AC5: 国・公立 | AD5: 自宅 | AE5: 45,000円 | AF5: 2,160,000円 | AG5: 12,857円 | AH5: 168回(14年)
C6: アルバイト | D6: 29130 | E6: 29610 | F6: 23280 | G6: 33080 | H6: 23790 | I6: 34610 | J6: 30110 | K6: 30910 | L6: 33520 | M6: 31540 | N6: 30680 | O6: 29640 | R6: アルバイト | S6: 39860 | T6: 交通費 | U6: 7990 | Y6: 私立大学 | Z6: 54,000円 | AA6: 64,000円 | AD6: 自宅外 | AE6: 51,000円 | AF6: 2,448,000円 | AG6: 13,600円 | AH6: 180回(15年)
C7: 定職＋その他 | D7: =450+3450 -> 3900 | E7: =2490+3590 -> 6080 | F7: =450+3410 -> 3860 | G7: =910+3300 -> 4210 | H7: =2640 -> 2640 | I7: =350+4040 -> 4390 | J7: =140+3390 -> 3530 | K7: =780+3650 -> 4430 | L7: =310+2470 -> 2780 | M7: =670+3370 -> 4040 | N7: =390+3210 -> 3600 | O7: =450+5060 -> 5510 | R7: 定職＋その他 | S7: 3160 | T7: 教養娯楽費 | U7: 11940 | Y7: 私立短大・専門学校 | Z7: 53,000円 | AA7: 60,000円 | AC7: 私立 | AD7: 自宅 | AE7: 54,000円 | AF7: 2,592,000円 | AG7: 14,400円 | AH7: 180回(15年)
C8: 収入合計 | D8: 125280 | E8: =SUM(E4:E7) -> 122380 | F8: 114760 | G8: 143900 | H8: 116820 | I8: 119900 | J8: 117360 | K8: 124600 | L8: =SUM(L4:L7) -> 125300 | M8: 124770 | N8: =SUM(N4:N7) -> 116100 | O8: 118430 | T8: 書籍費 | U8: 1680 | X8: 第二種奨学金 （年3％を上限と する利息付） | Y8: 2万円～12万円の間で選択できる（1万円単位）。 | AD8: 自宅外 | AE8: 64,000円 | AF8: 3,072,000円 | AG8: 14,222円 | AH8: 216回(18年)
C9: 食費 | D9: 24680 | E9: 22680 | F9: 22330 | G9: 27430 | H9: 24180 | I9: 23050 | J9: 24100 | K9: 24620 | L9: 24770 | M9: 24650 | N9: 22640 | O9: 24090 | T9: 勉学費 | U9: 1570 | Y9: 私立大の医・歯・薬・獣医学部課程で12万円を選択した場合に限り、
C10: 住居費 | D10: 53920 | E10: 48830 | F10: 48280 | G10: 66170 | H10: 48590 | I10: 49000 | J10: 48160 | K10: 54260 | L10: 51670 | M10: 53640 | N10: 47560 | O10: 47690 | T10: 日常費 | U10: 6270 | Y10: 希望により医・歯学部課程4万円、薬・獣医学部課程2万円を増額 | AC10: ＜返還例＞ | AD10: 第二種奨学金（利息付）－大学学部で貸与（48か月）を受けた場合
C11: 交通費 | D11: 3850 | E11: 2910 | F11: 2280 | G11: 6120 | H11: 3350 | I11: 3310 | J11: 3620 | K11: 4080 | L11: 4300 | M11: 4130 | N11: 2430 | O11: 3720 | T11: 電話代 | U11: 1470 | Y11: することができる。 | AC11: 貸与月額 | AD11: 貸与総額 | AE11: 年利 | AF11: 返還予定総額 | AG11: 返還月額 | AH11: 返還回数（年数）
C12: 教養娯楽費 | D12: 11760 | E12: 10640 | F12: 9930 | G12: 13460 | H12: 12070 | I12: 11990 | J12: 10530 | K12: 11320 | L12: 12730 | M12: 11660 | N12: 10690 | O12: 11680 | T12: その他 | U12: 2070 | Y12: 日本学生支援機構「2022年度 貸与奨学生のしおり」をもとに作成 | AC12: 30,000円 | AD12: 1,440,000円 | AE12: 3.0%の場合 | AF12: 1,761,917円 | AG12: 11,293円 | AH12: 156回（13年）
C13: 書籍費 | D13: 1700 | E13: 1690 | F13: 1640 | G13: 2190 | H13: 990 | I13: 1640 | J13: 1250 | K13: 1710 | L13: 1100 | M13: 1560 | N13: 1370 | O13: 1480 | T13: 貯金・繰越し | U13: 18850 | X13: ＊学力基準・年収・所得の上限額があるので、詳しくは日本学生支援機構のホームページを参照 | AC13: 50,000円 | AD13: 2,400,000円 | AE13: 3.0%の場合 | AF13: 3,018,568円 | AG13: 16,769円 | AH13: 180回（15年）
C14: 勉学費 | D14: 1900 | E14: 2010 | F14: 1910 | G14: 1910 | H14: 2950 | I14: 1820 | J14: 1930 | K14: 1900 | L14: 1970 | M14: 1920 | N14: 2070 | O14: 1990 | AC14: 80,000円 | AD14: 3,840,000円 | AE14: 3.0%の場合 | AF14: 5,167,586円 | AG14: 21,531円 | AH14: 240回（20年）
C15: 日常費 | D15: 7520 | E15: 7640 | F15: 7190 | G15: 8080 | H15: 7940 | I15: 7700 | J15: 7580 | K15: 7680 | L15: 7720 | M15: 7690 | N15: 7850 | O15: 7850 | R15: 出所：全国大学生活協同組合連合会 | AC15: 100,000円 | AD15: 4,800,000円 | AE15: 3.0%の場合 | AF15: 6,459,510円 | AG15: 26,914円 | AH15: 240回（20年）
C16: 電話代 | D16: 3110 | E16: 3350 | F16: 3320 | G16: 3800 | H16: 2530 | I16: 3090 | J16: 3170 | K16: 3150 | L16: 3600 | M16: 3260 | N16: 3390 | O16: 2870 | R16: 「CAMPUS LIFE DATA 2021」（2022年3月）より作成 | AC16: 120,000円 | AD16: 5,760,000円 | AE16: 3.0%の場合 | AF16: 7,751,445円 | AG16: 32,297円 | AH16: 240回（20年）
C17: その他 | D17: 2310 | E17: 2540 | F17: 2260 | G17: 2520 | H17: 2270 | I17: 1920 | J17: 2260 | K17: 2200 | L17: 2620 | M17: 2300 | N17: 2700 | O17: 2020 | AF17: 日本学生支援機構「2022年度 貸与奨学生のしおり」をもとに作成
C18: 貯金・繰越 | D18: 14300 | E18: 19310 | F18: 15360 | G18: 11380 | H18: 10520 | I18: 16870 | J18: 13760 | K18: 13540 | L18: 14550 | M18: 13780 | N18: 14810 | O18: 16210 | AE18: ※第二種奨学金の年利率は上限が3%。ここではその上限を使って返還額を試算した。
C19: 合計 | D19: 125040 | E19: 121580 | F19: 114500 | G19: 143050 | H19: 115390 | I19: =SUM(I9:I18)+10 -> 120400 | J19: 116350 | K19: 124460 | L19: 125040 | M19: 124600 | N19: 115510 | O19: 119590
C20: 出所：全国大学生活協同組合連合会「CAMPUS LIFE DATA 2021」（2022年3月）より作成
